[Event "Titled Tuesday Blitz March 07 Early 2023"]
[White "Prudnykova, Olga"]
[Black "Gamage, Wanshini Vidusama"]
[WhiteFideId "14121093"]
[BlackFideId "9953752"]
[WhiteElo "2113"]
[BlackElo "2178"]
[Result "1-0"]
[Round "03"]
[TimeControl "180+2"]
[Date "2023.03.07"]
[WhiteClock "0:00:20"]
[BlackClock "0:00:12"]

1. e4 {[%clk 0:03:00]}  c5 {[%clk 0:02:57]} 2. Nf3 {[%clk 0:03:00]}  d6 {[%clk 0:02:57]} 3. Nc3 {[%clk 0:03:00]}  Nf6 {[%clk 0:02:55]} 4. e5 {[%clk 0:03:00]}  dxe5 {[%clk 0:02:54]} 5. Nxe5 {[%clk 0:03:00]}  Nbd7 {[%clk 0:02:47]} 6. d4 {[%clk 0:02:59]}  cxd4 {[%clk 0:02:46]} 7. Qxd4 {[%clk 0:02:58]}  a6 {[%clk 0:02:43]} 8. Bc4 {[%clk 0:02:50]}  e6 {[%clk 0:02:43]} 9. Bf4 {[%clk 0:02:35]}  Bc5 {[%clk 0:02:34]} 10. Qd2 {[%clk 0:02:34]}  O-O {[%clk 0:02:31]} 11. O-O-O {[%clk 0:02:31]}  Qe7 {[%clk 0:02:18]} 12. Nxd7 {[%clk 0:02:22]}  Bxd7 {[%clk 0:02:18]} 13. Bg5 {[%clk 0:02:22]}  Bc6 {[%clk 0:02:17]} 14. Qf4 {[%clk 0:02:10]}  b5 {[%clk 0:02:13]} 15. Bd3 {[%clk 0:02:09]}  b4 {[%clk 0:02:10]} 16. Ne4 {[%clk 0:02:09]}  Bxe4 {[%clk 0:02:06]} 17. Bxe4 {[%clk 0:02:09]}  Rac8 {[%clk 0:02:05]} 18. Qh4 {[%clk 0:02:09]}  h6 {[%clk 0:01:47]} 19. Bxf6 {[%clk 0:02:02]}  Qxf6 {[%clk 0:01:46]} 20. Qxf6 {[%clk 0:02:02]}  gxf6 {[%clk 0:01:47]} 21. f3 {[%clk 0:01:58]}  Rfd8 {[%clk 0:01:46]} 22. Bb7 {[%clk 0:01:55]}  Rb8 {[%clk 0:01:36]} 23. Bxa6 {[%clk 0:01:54]}  Be3+ {[%clk 0:01:31]} 24. Kb1 {[%clk 0:01:54]}  Kf8 {[%clk 0:01:32]} 25. Rhe1 {[%clk 0:01:49]}  Bf4 {[%clk 0:01:31]} 26. h3 {[%clk 0:01:46]}  Bg3 {[%clk 0:01:29]} 27. Rf1 {[%clk 0:01:46]}  Ke7 {[%clk 0:01:27]} 28. Rd3 {[%clk 0:01:45]}  Rxd3 {[%clk 0:01:26]} 29. Bxd3 {[%clk 0:01:34]}  f5 {[%clk 0:01:22]} 30. Rc1 {[%clk 0:01:15]}  Bf4 {[%clk 0:01:21]} 31. Rd1 {[%clk 0:01:14]}  Rd8 {[%clk 0:01:20]} 32. a3 {[%clk 0:00:59]}  bxa3 {[%clk 0:01:17]} 33. bxa3 {[%clk 0:00:59]}  Ra8 {[%clk 0:01:06]} 34. Kb2 {[%clk 0:00:55]}  Be5+ {[%clk 0:01:05]} 35. Kb3 {[%clk 0:00:54]}  Rb8+ {[%clk 0:01:03]} 36. Kc4 {[%clk 0:00:46]}  Ra8 {[%clk 0:01:02]} 37. Kb4 {[%clk 0:00:45]}  Rb8+ {[%clk 0:01:02]} 38. Bb5 {[%clk 0:00:37]}  Bd6+ {[%clk 0:00:59]} 39. Kc4 {[%clk 0:00:35]}  Rc8+ {[%clk 0:00:56]} 40. Kb3 {[%clk 0:00:34]}  e5 {[%clk 0:00:43]} 41. a4 {[%clk 0:00:30]}  e4 {[%clk 0:00:42]} 42. Re1 {[%clk 0:00:23]}  Bg3 {[%clk 0:00:35]} 43. Re2 {[%clk 0:00:22]}  Kd6 {[%clk 0:00:32]} 44. fxe4 {[%clk 0:00:23]}  fxe4 {[%clk 0:00:29]} 45. Rxe4 {[%clk 0:00:22]}  f5 {[%clk 0:00:29]} 46. Rd4+ {[%clk 0:00:21]}  Ke5 {[%clk 0:00:26]} 47. Rd7 {[%clk 0:00:20]}  Kf6 {[%clk 0:00:19]} 48. Rh7 {[%clk 0:00:18]}  Kg6 {[%clk 0:00:17]} 49. Re7 {[%clk 0:00:18]}  Kf6 {[%clk 0:00:16]} 50. Re3 {[%clk 0:00:17]}  Bf2 {[%clk 0:00:15]} 51. Rf3 {[%clk 0:00:16]}  Be1 {[%clk 0:00:16]} 52. c4 {[%clk 0:00:17]}  Ke5 {[%clk 0:00:15]} 53. Rxf5+ {[%clk 0:00:16]}  Kxf5 {[%clk 0:00:13]} 54. Bd7+ {[%clk 0:00:17]}  Ke5 {[%clk 0:00:12]} 55. Bxc8 {[%clk 0:00:17]}  Kd6 {[%clk 0:00:12]} 56. Bb7 {[%clk 0:00:18]}  Kc5 {[%clk 0:00:12]} 57. Bf3 {[%clk 0:00:18]}  Bg3 {[%clk 0:00:10]} 58. Bd5 {[%clk 0:00:18]}  h5 {[%clk 0:00:10]} 59. Bf7 {[%clk 0:00:19]}  h4 {[%clk 0:00:10]} 60. Be8 {[%clk 0:00:19]}  Kb6 {[%clk 0:00:11]} 61. Bb5 {[%clk 0:00:19]}  Bf2 {[%clk 0:00:11]} 62. Kc3 {[%clk 0:00:19]}  Be1+ {[%clk 0:00:11]} 63. Kd3 {[%clk 0:00:19]}  Bf2 {[%clk 0:00:11]} 64. Ke4 {[%clk 0:00:20]}  Bg3 {[%clk 0:00:11]} 65. Kd5 {[%clk 0:00:21]}  Bf2 {[%clk 0:00:11]} 66. Ke4 {[%clk 0:00:20]}  Bg3 {[%clk 0:00:11]} 67. Kf3 {[%clk 0:00:21]}  Be1 {[%clk 0:00:11]} 68. Ke3 {[%clk 0:00:20]}  Bg3 {[%clk 0:00:12]} 69. Kd4 {[%clk 0:00:21]}  Bf2+ {[%clk 0:00:13]} 70. Kc3 {[%clk 0:00:21]}  Bg3 {[%clk 0:00:14]} 71. Kb4 {[%clk 0:00:21]}  Be1+ {[%clk 0:00:14]} 72. Kb3 {[%clk 0:00:21]}  Bg3 {[%clk 0:00:15]} 73. Kc2 {[%clk 0:00:21]}  Bf2 {[%clk 0:00:15]} 74. Kd3 {[%clk 0:00:22]}  Bg3 {[%clk 0:00:16]} 75. Kd4 {[%clk 0:00:21]}  Bf2+ {[%clk 0:00:16]} 76. Kd5 {[%clk 0:00:22]}  Bg3 {[%clk 0:00:17]} 77. c5+ {[%clk 0:00:22]}  Ka5 {[%clk 0:00:18]} 78. Kc6 {[%clk 0:00:22]}  Bf4 {[%clk 0:00:17]} 79. Kb7 {[%clk 0:00:22]}  Bg3 {[%clk 0:00:18]} 80. c6 {[%clk 0:00:23]}  Bd6 {[%clk 0:00:13]} 81. c7 {[%clk 0:00:23]}  Be7 {[%clk 0:00:11]} 82. c8=Q {[%clk 0:00:22]}  Bf6 {[%clk 0:00:12]} 83. Qc6 {[%clk 0:00:20]} 1-0


[Site "https://www.chess.com"]

[Event "Titled Tuesday Blitz March 07 Early 2023"]
[White "Vaglio Munoz, Jaime"]
[Black "Kiseleva, Arina"]
[WhiteFideId "6500145"]
[BlackFideId "4164989"]
[WhiteElo "2199"]
[BlackElo "1756"]
[Result "1-0"]
[Round "03"]
[TimeControl "180+2"]
[Date "2023.03.07"]
[WhiteClock "0:00:34"]
[BlackClock "0:00:03"]

1. e4 {[%clk 0:03:00]}  c6 {[%clk 0:02:59]} 2. Nf3 {[%clk 0:02:52]}  d5 {[%clk 0:03:00]} 3. d3 {[%clk 0:02:52]}  Bg4 {[%clk 0:02:54]} 4. Nbd2 {[%clk 0:02:43]}  e6 {[%clk 0:02:47]} 5. Be2 {[%clk 0:02:42]}  Nf6 {[%clk 0:02:45]} 6. O-O {[%clk 0:02:39]}  Nbd7 {[%clk 0:02:37]} 7. h3 {[%clk 0:02:24]}  Bxf3 {[%clk 0:02:30]} 8. Bxf3 {[%clk 0:02:23]}  Bd6 {[%clk 0:02:26]} 9. Re1 {[%clk 0:02:09]}  Bc7 {[%clk 0:02:15]} 10. g3 {[%clk 0:01:58]}  h5 {[%clk 0:02:00]} 11. Bg2 {[%clk 0:01:56]}  h4 {[%clk 0:01:46]} 12. gxh4 {[%clk 0:01:56]}  dxe4 {[%clk 0:01:24]} 13. Nxe4 {[%clk 0:01:51]}  Nxe4 {[%clk 0:01:23]} 14. Rxe4 {[%clk 0:01:52]}  Rxh4 {[%clk 0:01:21]} 15. Be3 {[%clk 0:01:38]}  Rxe4 {[%clk 0:01:19]} 16. dxe4 {[%clk 0:01:37]}  Qf6 {[%clk 0:01:13]} 17. c3 {[%clk 0:01:36]}  O-O-O {[%clk 0:00:59]} 18. Bxa7 {[%clk 0:01:03]}  Ne5 {[%clk 0:00:46]} 19. Qe2 {[%clk 0:01:00]}  Ng6 {[%clk 0:00:46]} 20. Be3 {[%clk 0:01:00]}  Qe5 {[%clk 0:00:34]} 21. Rd1 {[%clk 0:00:50]}  Qh2+ {[%clk 0:00:29]} 22. Kf1 {[%clk 0:00:50]}  Nh4 {[%clk 0:00:29]} 23. Rxd8+ {[%clk 0:00:49]}  Kxd8 {[%clk 0:00:26]} 24. Bg5+ {[%clk 0:00:48]}  f6 {[%clk 0:00:24]} 25. Bxh4 {[%clk 0:00:49]}  g5 {[%clk 0:00:24]} 26. Bg3 {[%clk 0:00:49]}  Bxg3 {[%clk 0:00:25]} 27. fxg3 {[%clk 0:00:45]}  Qxg3 {[%clk 0:00:26]} 28. Qf2 {[%clk 0:00:37]}  Qe5 {[%clk 0:00:25]} 29. Qd4+ {[%clk 0:00:36]}  Qxd4 {[%clk 0:00:17]} 30. cxd4 {[%clk 0:00:37]}  Ke7 {[%clk 0:00:17]} 31. b4 {[%clk 0:00:37]}  Kd6 {[%clk 0:00:17]} 32. Ke2 {[%clk 0:00:37]}  b6 {[%clk 0:00:14]} 33. Kd3 {[%clk 0:00:37]}  e5 {[%clk 0:00:10]} 34. a4 {[%clk 0:00:36]}  exd4 {[%clk 0:00:06]} 35. Kxd4 {[%clk 0:00:37]}  Ke6 {[%clk 0:00:04]} 36. Bf1 {[%clk 0:00:34]}  Kd6 {[%clk 0:00:04]} 37. Bc4 {[%clk 0:00:34]}  c5+ {[%clk 0:00:04]} 38. bxc5+ {[%clk 0:00:35]}  bxc5+ {[%clk 0:00:04]} 39. Ke3 {[%clk 0:00:36]}  Ke5 {[%clk 0:00:04]} 40. a5 {[%clk 0:00:36]}  Kd6 {[%clk 0:00:03]} 41. a6 {[%clk 0:00:36]}  Kc7 {[%clk 0:00:03]} 42. Kf3 {[%clk 0:00:34]} 1-0


[Site "https://www.chess.com"]

[Event "Titled Tuesday Blitz March 07 Early 2023"]
[White "Aanan, Shafiuddin"]
[Black "Rostomyan, Mikayel"]
[WhiteFideId "3242633"]
[BlackFideId "13313754"]
[WhiteElo "1648"]
[BlackElo "2009"]
[Result "0-1"]
[Round "03"]
[TimeControl "180+2"]
[Date "2023.03.07"]
[WhiteClock "0:00:12"]
[BlackClock "0:01:37"]

1. e4 {[%clk 0:03:00]}  c5 {[%clk 0:02:59]} 2. Nc3 {[%clk 0:03:00]}  Nc6 {[%clk 0:02:59]} 3. Bb5 {[%clk 0:02:59]}  Nd4 {[%clk 0:02:59]} 4. Nf3 {[%clk 0:02:58]}  a6 {[%clk 0:02:59]} 5. Bd3 {[%clk 0:02:56]}  g6 {[%clk 0:02:58]} 6. Nxd4 {[%clk 0:02:48]}  cxd4 {[%clk 0:02:59]} 7. Ne2 {[%clk 0:02:48]}  Bg7 {[%clk 0:03:00]} 8. c3 {[%clk 0:02:46]}  dxc3 {[%clk 0:03:00]} 9. dxc3 {[%clk 0:02:46]}  b5 {[%clk 0:03:00]} 10. O-O {[%clk 0:02:40]}  Bb7 {[%clk 0:03:00]} 11. a4 {[%clk 0:02:39]}  Nf6 {[%clk 0:02:56]} 12. Ng3 {[%clk 0:02:20]}  O-O {[%clk 0:02:38]} 13. e5 {[%clk 0:02:08]}  Nd5 {[%clk 0:02:28]} 14. Qe2 {[%clk 0:02:08]}  b4 {[%clk 0:02:24]} 15. c4 {[%clk 0:01:57]}  Nc7 {[%clk 0:02:23]} 16. f4 {[%clk 0:01:42]}  d6 {[%clk 0:02:17]} 17. Be3 {[%clk 0:01:10]}  dxe5 {[%clk 0:02:13]} 18. fxe5 {[%clk 0:01:10]}  Bxe5 {[%clk 0:02:12]} 19. Rad1 {[%clk 0:01:10]}  Qc8 {[%clk 0:02:02]} 20. Bh6 {[%clk 0:01:08]}  Bg7 {[%clk 0:02:01]} 21. Bxg7 {[%clk 0:01:08]}  Kxg7 {[%clk 0:02:02]} 22. Qxe7 {[%clk 0:01:05]}  Ne6 {[%clk 0:01:52]} 23. Qf6+ {[%clk 0:01:02]}  Kg8 {[%clk 0:01:49]} 24. Kh1 {[%clk 0:00:21]}  Qd8 {[%clk 0:01:40]} 25. Qe5 {[%clk 0:00:17]}  Qc7 {[%clk 0:01:41]} 26. Qf6 {[%clk 0:00:15]}  Rad8 {[%clk 0:01:39]} 27. h4 {[%clk 0:00:12]}  Qxg3 {[%clk 0:01:37]} 0-1


[Site "https://www.chess.com"]

[Event "Titled Tuesday Blitz March 07 Early 2023"]
[White "Ocido, Michael"]
[Black "Johnson, Ben"]
[WhiteFideId "115201920"]
[BlackFideId "2010917"]
[WhiteElo "2340"]
[BlackElo "2153"]
[Result "1-0"]
[Round "03"]
[TimeControl "180+2"]
[Date "2023.03.07"]
[WhiteClock "0:00:48"]
[BlackClock "0:00:38"]

1. d4 {[%clk 0:02:50]}  Nf6 {[%clk 0:02:45]} 2. c4 {[%clk 0:02:50]}  e6 {[%clk 0:02:43]} 3. Nc3 {[%clk 0:02:31]}  Bb4 {[%clk 0:02:42]} 4. e3 {[%clk 0:02:31]}  O-O {[%clk 0:02:40]} 5. Ne2 {[%clk 0:02:31]}  d5 {[%clk 0:02:36]} 6. a3 {[%clk 0:02:31]}  Be7 {[%clk 0:02:31]} 7. Ng3 {[%clk 0:02:10]}  dxc4 {[%clk 0:02:07]} 8. Bxc4 {[%clk 0:02:10]}  c5 {[%clk 0:02:07]} 9. O-O {[%clk 0:02:07]}  Nc6 {[%clk 0:02:03]} 10. dxc5 {[%clk 0:02:01]}  Qxd1 {[%clk 0:01:56]} 11. Rxd1 {[%clk 0:02:02]}  Bxc5 {[%clk 0:01:57]} 12. b4 {[%clk 0:01:57]}  Be7 {[%clk 0:01:56]} 13. Bb2 {[%clk 0:01:57]}  Rd8 {[%clk 0:01:42]} 14. Rxd8+ {[%clk 0:01:49]}  Bxd8 {[%clk 0:01:38]} 15. Rd1 {[%clk 0:01:49]}  Bc7 {[%clk 0:01:30]} 16. Nb5 {[%clk 0:01:42]}  Bb8 {[%clk 0:01:11]} 17. Nd6 {[%clk 0:01:17]}  Bc7 {[%clk 0:01:10]} 18. b5 {[%clk 0:01:05]}  Ne7 {[%clk 0:00:58]} 19. Bxf6 {[%clk 0:00:54]}  gxf6 {[%clk 0:00:57]} 20. Ne8 {[%clk 0:00:54]}  Be5 {[%clk 0:00:53]} 21. Rd8 {[%clk 0:00:50]}  h6 {[%clk 0:00:38]} 22. Nc7+ {[%clk 0:00:48]} 1-0


[Site "https://www.chess.com"]

[Event "Titled Tuesday Blitz March 07 Early 2023"]
[White "Seletsky, Grigory"]
[Black "Tarnowska, Aleksandra"]
[WhiteFideId "14112191"]
[BlackFideId "1180967"]
[WhiteElo "2490"]
[BlackElo "1776"]
[Result "1/2-1/2"]
[Round "03"]
[TimeControl "180+2"]
[Date "2023.03.07"]
[WhiteClock "0:00:03"]
[BlackClock "0:00:03"]

1. e4 {[%clk 0:02:54]}  c5 {[%clk 0:02:59]} 2. Nf3 {[%clk 0:02:53]}  e6 {[%clk 0:02:59]} 3. d3 {[%clk 0:02:53]}  a6 {[%clk 0:02:59]} 4. g3 {[%clk 0:02:52]}  d6 {[%clk 0:02:58]} 5. Bg2 {[%clk 0:02:52]}  Nf6 {[%clk 0:02:58]} 6. O-O {[%clk 0:02:52]}  Be7 {[%clk 0:02:59]} 7. Re1 {[%clk 0:02:52]}  O-O {[%clk 0:02:59]} 8. c3 {[%clk 0:02:52]}  b5 {[%clk 0:02:45]} 9. e5 {[%clk 0:02:49]}  Nd5 {[%clk 0:02:38]} 10. d4 {[%clk 0:02:45]}  cxd4 {[%clk 0:02:28]} 11. cxd4 {[%clk 0:02:43]}  dxe5 {[%clk 0:02:24]} 12. dxe5 {[%clk 0:02:43]}  Bb7 {[%clk 0:02:24]} 13. a3 {[%clk 0:02:42]}  Nd7 {[%clk 0:02:15]} 14. Nbd2 {[%clk 0:02:35]}  Rc8 {[%clk 0:02:05]} 15. Ne4 {[%clk 0:02:33]}  Nc5 {[%clk 0:01:49]} 16. Nxc5 {[%clk 0:02:26]}  Bxc5 {[%clk 0:01:48]} 17. b4 {[%clk 0:02:25]}  Bb6 {[%clk 0:01:37]} 18. Bb2 {[%clk 0:02:14]}  Nc3 {[%clk 0:01:33]} 19. Bxc3 {[%clk 0:01:36]}  Rxc3 {[%clk 0:01:30]} 20. Qe2 {[%clk 0:01:33]}  Qc7 {[%clk 0:01:21]} 21. Red1 {[%clk 0:01:28]}  Rc2 {[%clk 0:00:59]} 22. Rd2 {[%clk 0:01:28]}  Rxd2 {[%clk 0:00:39]} 23. Qxd2 {[%clk 0:01:15]}  Bxf3 {[%clk 0:00:30]} 24. Bxf3 {[%clk 0:01:14]}  Qxe5 {[%clk 0:00:31]} 25. Re1 {[%clk 0:01:10]}  Qd4 {[%clk 0:00:23]} 26. Qxd4 {[%clk 0:01:00]}  Bxd4 {[%clk 0:00:24]} 27. Bb7 {[%clk 0:00:59]}  Bb2 {[%clk 0:00:18]} 28. Re3 {[%clk 0:00:57]}  Bd4 {[%clk 0:00:08]} 29. Rd3 {[%clk 0:00:56]}  Rd8 {[%clk 0:00:09]} 30. Kf1 {[%clk 0:00:55]}  Rd6 {[%clk 0:00:07]} 31. Bxa6 {[%clk 0:00:53]}  Rxa6 {[%clk 0:00:05]} 32. Rxd4 {[%clk 0:00:53]}  g6 {[%clk 0:00:05]} 33. Rd8+ {[%clk 0:00:49]}  Kg7 {[%clk 0:00:06]} 34. Rb8 {[%clk 0:00:48]}  Rxa3 {[%clk 0:00:05]} 35. Rxb5 {[%clk 0:00:49]}  Ra2 {[%clk 0:00:06]} 36. h4 {[%clk 0:00:47]}  Kf6 {[%clk 0:00:06]} 37. Kg2 {[%clk 0:00:45]}  h5 {[%clk 0:00:06]} 38. Rb7 {[%clk 0:00:40]}  Rb2 {[%clk 0:00:05]} 39. b5 {[%clk 0:00:40]}  e5 {[%clk 0:00:04]} 40. Kf3 {[%clk 0:00:39]}  Ke6 {[%clk 0:00:03]} 41. Rb6+ {[%clk 0:00:38]}  Kf5 {[%clk 0:00:02]} 42. Rb7 {[%clk 0:00:37]}  Rb3+ {[%clk 0:00:03]} 43. Ke2 {[%clk 0:00:36]}  f6 {[%clk 0:00:04]} 44. b6 {[%clk 0:00:35]}  Ke6 {[%clk 0:00:04]} 45. Rb8 {[%clk 0:00:35]}  Kd7 {[%clk 0:00:02]} 46. Rg8 {[%clk 0:00:28]}  Rxb6 {[%clk 0:00:03]} 47. Rxg6 {[%clk 0:00:27]}  Rb2+ {[%clk 0:00:04]} 48. Kf3 {[%clk 0:00:26]}  Ke6 {[%clk 0:00:04]} 49. Rh6 {[%clk 0:00:24]}  Rb3+ {[%clk 0:00:05]} 50. Kg2 {[%clk 0:00:23]}  Kf5 {[%clk 0:00:05]} 51. Rxh5+ {[%clk 0:00:23]}  Kg6 {[%clk 0:00:06]} 52. Rh8 {[%clk 0:00:23]}  Rb2 {[%clk 0:00:06]} 53. Re8 {[%clk 0:00:23]}  Rb3 {[%clk 0:00:06]} 54. g4 {[%clk 0:00:22]}  Rb4 {[%clk 0:00:06]} 55. Kg3 {[%clk 0:00:20]}  Rb3+ {[%clk 0:00:06]} 56. f3 {[%clk 0:00:19]}  Rb1 {[%clk 0:00:07]} 57. h5+ {[%clk 0:00:19]}  Kg7 {[%clk 0:00:07]} 58. Re7+ {[%clk 0:00:19]}  Kf8 {[%clk 0:00:07]} 59. Rb7 {[%clk 0:00:17]}  Rg1+ {[%clk 0:00:07]} 60. Kf2 {[%clk 0:00:16]}  Rh1 {[%clk 0:00:06]} 61. Ke3 {[%clk 0:00:16]}  Re1+ {[%clk 0:00:05]} 62. Kd3 {[%clk 0:00:16]}  Kg8 {[%clk 0:00:02]} 63. h6 {[%clk 0:00:16]}  Kh8 {[%clk 0:00:02]} 64. h7 {[%clk 0:00:16]}  Rh1 {[%clk 0:00:02]} 65. Ke4 {[%clk 0:00:16]}  Rxh7 {[%clk 0:00:02]} 66. Rb8+ {[%clk 0:00:14]}  Kg7 {[%clk 0:00:02]} 67. Kf5 {[%clk 0:00:14]}  Rh3 {[%clk 0:00:02]} 68. Rb7+ {[%clk 0:00:14]}  Kf8 {[%clk 0:00:02]} 69. Kxf6 {[%clk 0:00:14]}  Rxf3+ {[%clk 0:00:02]} 70. Kxe5 {[%clk 0:00:15]}  Kg8 {[%clk 0:00:02]} 71. g5 {[%clk 0:00:14]}  Rf1 {[%clk 0:00:02]} 72. Ke6 {[%clk 0:00:14]}  Kf8 {[%clk 0:00:02]} 73. g6 {[%clk 0:00:11]}  Kg8 {[%clk 0:00:02]} 74. Rd7 {[%clk 0:00:08]}  Rf2 {[%clk 0:00:02]} 75. Rf7 {[%clk 0:00:06]}  Re2+ {[%clk 0:00:01]} 76. Kf5 {[%clk 0:00:05]}  Rf2+ {[%clk 0:00:01]} 77. Ke6 {[%clk 0:00:05]}  Re2+ {[%clk 0:00:01]} 78. Kf6 {[%clk 0:00:04]}  Rf2+ {[%clk 0:00:01]} 79. Ke7 {[%clk 0:00:04]}  Re2+ {[%clk 0:00:02]} 80. Kd7 {[%clk 0:00:04]}  Rg2 {[%clk 0:00:02]} 81. Rf6 {[%clk 0:00:02]}  Kg7 {[%clk 0:00:01]} 82. Re6 {[%clk 0:00:02]}  Rxg6 {[%clk 0:00:02]} 83. Rxg6+ {[%clk 0:00:03]}  Kxg6 {[%clk 0:00:03]} 1/2-1/2


[Site "https://www.chess.com"]

[Event "Titled Tuesday Blitz March 07 Early 2023"]
[White "Chemin, Justo Reinaldo"]
[Black "Kostiukov, Alexandr"]
[WhiteFideId "2101580"]
[BlackFideId "14108100"]
[WhiteElo "1940"]
[BlackElo "2202"]
[Result "0-1"]
[Round "03"]
[TimeControl "180+2"]
[Date "2023.03.07"]
[WhiteClock "0:00:02"]
[BlackClock "0:00:59"]

1. d4 {[%clk 0:02:01]}  g6 {[%clk 0:02:58]} 2. e4 {[%clk 0:02:01]}  Bg7 {[%clk 0:02:59]} 3. Nf3 {[%clk 0:02:01]}  c5 {[%clk 0:02:59]} 4. Nc3 {[%clk 0:01:56]}  cxd4 {[%clk 0:02:59]} 5. Nxd4 {[%clk 0:01:55]}  Nc6 {[%clk 0:02:59]} 6. Be3 {[%clk 0:01:55]}  Nf6 {[%clk 0:02:59]} 7. f3 {[%clk 0:01:46]}  O-O {[%clk 0:02:43]} 8. Qd2 {[%clk 0:01:45]}  d5 {[%clk 0:02:43]} 9. Nxc6 {[%clk 0:01:34]}  bxc6 {[%clk 0:02:44]} 10. e5 {[%clk 0:01:33]}  Nd7 {[%clk 0:02:40]} 11. f4 {[%clk 0:01:32]}  e6 {[%clk 0:02:38]} 12. Be2 {[%clk 0:01:27]}  c5 {[%clk 0:02:33]} 13. Bf2 {[%clk 0:01:19]}  Rb8 {[%clk 0:02:24]} 14. b3 {[%clk 0:01:16]}  Qa5 {[%clk 0:02:10]} 15. Ne4 {[%clk 0:00:55]}  Qxd2+ {[%clk 0:01:56]} 16. Nxd2 {[%clk 0:00:55]}  f6 {[%clk 0:01:50]} 17. exf6 {[%clk 0:00:53]}  Bxf6 {[%clk 0:01:51]} 18. O-O-O {[%clk 0:00:51]}  a5 {[%clk 0:01:44]} 19. Bg4 {[%clk 0:00:42]}  Re8 {[%clk 0:01:36]} 20. Rhe1 {[%clk 0:00:41]}  Kf7 {[%clk 0:01:36]} 21. Nf3 {[%clk 0:00:18]}  Bc3 {[%clk 0:01:27]} 22. Re2 {[%clk 0:00:16]}  h6 {[%clk 0:01:23]} 23. h4 {[%clk 0:00:14]}  a4 {[%clk 0:01:23]} 24. h5 {[%clk 0:00:13]}  Nf6 {[%clk 0:01:14]} 25. hxg6+ {[%clk 0:00:13]}  Kxg6 {[%clk 0:01:15]} 26. Ne5+ {[%clk 0:00:09]}  Bxe5 {[%clk 0:01:12]} 27. fxe5 {[%clk 0:00:02]}  Nxg4 {[%clk 0:01:12]} 28. Bxc5 {[%clk 0:00:02]}  Ba6 {[%clk 0:00:59]} 0-1


[Site "https://www.chess.com"]

[Event "Titled Tuesday Blitz March 07 Early 2023"]
[White "Pesotskiy, Mikhail"]
[Black "ritanovikova"]
[WhiteFideId "34164453"]
[WhiteElo "2131"]
[BlackElo "2126"]
[Result "1-0"]
[Round "03"]
[TimeControl "180+2"]
[Date "2023.03.07"]
[WhiteClock "0:00:53"]
[BlackClock "0:00:09"]

1. d4 {[%clk 0:02:59]}  d5 {[%clk 0:02:46]} 2. c4 {[%clk 0:02:59]}  e6 {[%clk 0:02:45]} 3. Nc3 {[%clk 0:02:59]}  Nf6 {[%clk 0:02:45]} 4. cxd5 {[%clk 0:02:59]}  exd5 {[%clk 0:02:45]} 5. Bg5 {[%clk 0:02:59]}  Be7 {[%clk 0:02:40]} 6. e3 {[%clk 0:02:59]}  h6 {[%clk 0:02:39]} 7. Bf4 {[%clk 0:02:56]}  Bd6 {[%clk 0:02:38]} 8. Bxd6 {[%clk 0:02:54]}  Qxd6 {[%clk 0:02:38]} 9. Bd3 {[%clk 0:02:55]}  a6 {[%clk 0:02:35]} 10. Nge2 {[%clk 0:02:56]}  O-O {[%clk 0:02:35]} 11. O-O {[%clk 0:02:53]}  Nc6 {[%clk 0:02:34]} 12. Rc1 {[%clk 0:02:49]}  Ne7 {[%clk 0:02:29]} 13. Ng3 {[%clk 0:02:46]}  c6 {[%clk 0:02:26]} 14. Qd2 {[%clk 0:02:45]}  Re8 {[%clk 0:02:09]} 15. Na4 {[%clk 0:02:44]}  Be6 {[%clk 0:02:00]} 16. Nc5 {[%clk 0:02:43]}  Rab8 {[%clk 0:02:00]} 17. Qb4 {[%clk 0:02:35]}  Qc7 {[%clk 0:01:35]} 18. Nxe6 {[%clk 0:02:24]}  fxe6 {[%clk 0:01:34]} 19. e4 {[%clk 0:02:25]}  Qf4 {[%clk 0:01:26]} 20. e5 {[%clk 0:02:22]}  Nd7 {[%clk 0:01:21]} 21. Ne2 {[%clk 0:02:09]}  Qh4 {[%clk 0:01:20]} 22. Qd2 {[%clk 0:02:01]}  c5 {[%clk 0:01:15]} 23. f4 {[%clk 0:01:49]}  c4 {[%clk 0:01:01]} 24. Bb1 {[%clk 0:01:48]}  Rf8 {[%clk 0:00:55]} 25. Ng3 {[%clk 0:01:44]}  g6 {[%clk 0:00:40]} 26. Qb4 {[%clk 0:01:22]}  Rxf4 {[%clk 0:00:25]} 27. Qd6 {[%clk 0:00:57]}  Nf8 {[%clk 0:00:11]} 28. Qxb8 {[%clk 0:00:55]}  Rxd4 {[%clk 0:00:09]} 29. Qxf8+ {[%clk 0:00:53]} 1-0


[Site "https://www.chess.com"]

[Event "Titled Tuesday Blitz March 07 Early 2023"]
[White "Dwilewicz, Katarzyna"]
[Black "Latreche, Khadidja"]
[WhiteFideId "1148486"]
[BlackFideId "7901780"]
[WhiteElo "2065"]
[BlackElo "1869"]
[Result "1-0"]
[Round "03"]
[TimeControl "180+2"]
[Date "2023.03.07"]
[WhiteClock "0:00:17"]
[BlackClock "0:00:22"]

1. e4 {[%clk 0:02:59]}  c5 {[%clk 0:02:58]} 2. Nf3 {[%clk 0:02:56]}  e6 {[%clk 0:02:58]} 3. g3 {[%clk 0:02:55]}  Nc6 {[%clk 0:02:56]} 4. Bg2 {[%clk 0:02:55]}  g6 {[%clk 0:02:50]} 5. O-O {[%clk 0:02:54]}  Bg7 {[%clk 0:02:50]} 6. c3 {[%clk 0:02:51]}  Nge7 {[%clk 0:02:50]} 7. d4 {[%clk 0:02:51]}  cxd4 {[%clk 0:02:50]} 8. cxd4 {[%clk 0:02:49]}  d5 {[%clk 0:02:50]} 9. e5 {[%clk 0:02:45]}  O-O {[%clk 0:02:49]} 10. Nc3 {[%clk 0:02:45]}  a6 {[%clk 0:02:47]} 11. Bf4 {[%clk 0:02:37]}  b5 {[%clk 0:02:47]} 12. Qd2 {[%clk 0:02:36]}  Qb6 {[%clk 0:02:41]} 13. Rac1 {[%clk 0:02:31]}  Bb7 {[%clk 0:02:39]} 14. Rfd1 {[%clk 0:02:31]}  Rac8 {[%clk 0:02:40]} 15. h4 {[%clk 0:02:30]}  f6 {[%clk 0:02:38]} 16. exf6 {[%clk 0:02:29]}  Bxf6 {[%clk 0:02:37]} 17. Bg5 {[%clk 0:02:00]}  Nf5 {[%clk 0:02:35]} 18. Ne2 {[%clk 0:01:31]}  Ncxd4 {[%clk 0:02:14]} 19. Nexd4 {[%clk 0:01:25]}  Rxc1 {[%clk 0:02:12]} 20. Rxc1 {[%clk 0:01:00]}  Nxd4 {[%clk 0:02:02]} 21. Bxf6 {[%clk 0:00:48]}  Nxf3+ {[%clk 0:02:00]} 22. Bxf3 {[%clk 0:00:49]}  Rxf6 {[%clk 0:01:57]} 23. Bg2 {[%clk 0:00:47]}  Rf7 {[%clk 0:01:41]} 24. h5 {[%clk 0:00:46]}  Kg7 {[%clk 0:01:36]} 25. h6+ {[%clk 0:00:45]}  Kf6 {[%clk 0:01:28]} 26. Qf4+ {[%clk 0:00:40]}  Ke7 {[%clk 0:01:26]} 27. Rc7+ {[%clk 0:00:41]}  Qxc7 {[%clk 0:01:22]} 28. Qxc7+ {[%clk 0:00:41]}  Kf6 {[%clk 0:01:23]} 29. Qf4+ {[%clk 0:00:37]}  Ke7 {[%clk 0:01:21]} 30. Qe5 {[%clk 0:00:36]}  Bc6 {[%clk 0:01:13]} 31. Kf1 {[%clk 0:00:36]}  Rf5 {[%clk 0:01:11]} 32. Qh8 {[%clk 0:00:33]}  Rf7 {[%clk 0:01:09]} 33. Ke1 {[%clk 0:00:32]}  Kd6 {[%clk 0:01:09]} 34. f4 {[%clk 0:00:32]}  Kc5 {[%clk 0:01:03]} 35. Qg7 {[%clk 0:00:29]}  Be8 {[%clk 0:00:59]} 36. Qc3+ {[%clk 0:00:27]}  Kb6 {[%clk 0:00:59]} 37. Kd2 {[%clk 0:00:25]}  a5 {[%clk 0:00:56]} 38. Qd4+ {[%clk 0:00:25]}  Ka6 {[%clk 0:00:53]} 39. Qe5 {[%clk 0:00:25]}  Bd7 {[%clk 0:00:47]} 40. Qd6+ {[%clk 0:00:25]}  Kb7 {[%clk 0:00:47]} 41. a3 {[%clk 0:00:24]}  Kc8 {[%clk 0:00:43]} 42. Qc5+ {[%clk 0:00:22]}  Kb8 {[%clk 0:00:37]} 43. Qb6+ {[%clk 0:00:21]}  Kc8 {[%clk 0:00:35]} 44. Qxa5 {[%clk 0:00:21]}  e5 {[%clk 0:00:35]} 45. Qc3+ {[%clk 0:00:19]}  Kb7 {[%clk 0:00:32]} 46. Bxd5+ {[%clk 0:00:18]}  Kb6 {[%clk 0:00:31]} 47. Bxf7 {[%clk 0:00:19]}  exf4 {[%clk 0:00:31]} 48. Qd4+ {[%clk 0:00:19]}  Ka5 {[%clk 0:00:31]} 49. b4+ {[%clk 0:00:17]}  Ka4 {[%clk 0:00:25]} 50. Qc3 {[%clk 0:00:17]}  fxg3 {[%clk 0:00:22]} 51. Qb3# {[%clk 0:00:17]} 1-0


[Site "https://www.chess.com"]